bitfinex/quotes_BTCUSD_20250123
["timestamp","ask_amount","ask_price","bid_price","bid_amount"]
[1737673030751,0.01338038,103920.0,103910.0,0.44053683]
[1737673031089,0.01338038,103920.0,103910.0,0.34318954]
[1737673031915,0.13001452,103920.0,103910.0,0.34318954]
[1737673032117,0.02329883,103920.0,103910.0,0.34318954]
[1737673032805,0.03638038,103920.0,103910.0,0.34318954]
[1737673034737,0.03638038,103920.0,103910.0,0.35660047]
[1737673035316,0.02329883,103920.0,103910.0,0.35660047]
[1737673035636,0.02329883,103920.0,103910.0,0.34318954]
[1737673036046,0.03638038,103920.0,103910.0,0.34318954]
[1737673036249,0.02329883,103920.0,103910.0,0.34318954]
[1737673036402,0.03638038,103920.0,103910.0,0.34318954]
[1737673036791,0.00029883,103920.0,103910.0,0.44015229]
[1737673037486,0.02329883,103920.0,103910.0,0.44015229]
[1737673038123,0.02329883,103920.0,103910.0,0.45355121]
[1737673038496,0.02329883,103920.0,103910.0,0.37405121]
[1737673038641,0.02329883,103920.0,103910.0,0.27708846]
[1737673040041,0.03638038,103920.0,103910.0,0.27708846]
[1737673040251,0.02329883,103920.0,103910.0,0.35718846]
[1737673040651,0.03638038,103920.0,103910.0,0.35718846]
[1737673040893,0.03638038,103920.0,103910.0,0.45453575]
[1737673041095,0.01338038,103920.0,103910.0,0.45453575]
[1737673041896,0.01338038,103920.0,103910.0,0.35718846]
[1737673042517,0.22736181,103920.0,103910.0,0.18085146]
[1737673042750,0.32358881,103920.0,103910.0,0.18085146]
[1737673046159,0.21687312,103920.0,103910.0,0.18085146]
[1737673046391,0.21687312,103920.0,103910.0,0.27708846]
[1737673046606,0.30058881,103920.0,103910.0,0.34329361]
[1737673046817,0.30058881,103920.0,103910.0,0.18085146]
[1737673047028,0.32358881,103920.0,103910.0,0.18085146]
[1737673047902,0.32358881,103920.0,103910.0,0.20229711]
[1737673049607,0.32358881,103920.0,103910.0,0.18085146]
[1737673050629,0.32358881,103920.0,103910.0,0.16745254]
[1737673051894,0.32358881,103920.0,103910.0,0.19382179]
[1737673052095,0.32358881,103920.0,103910.0,0.16745254]
[1737673055115,0.37358881,103920.0,103910.0,0.16745254]
[1737673055341,0.32358881,103920.0,103910.0,0.16745254]
[1737673057207,0.12064612,103920.0,103910.0,0.26368954]
[1737673057405,0.00029883,103920.0,103910.0,0.34558954]
[1737673057586,0.00029883,103920.0,103910.0,0.42329459]
[1737673058117,0.02329883,103920.0,103910.0,0.42329459]
[1737673058311,0.00029883,103920.0,103910.0,0.42329459]
[1737673058513,0.01338038,103920.0,103910.0,0.47119459]
[1737673058717,0.03638038,103920.0,103910.0,0.47119459]
[1737673059398,0.01338038,103920.0,103910.0,0.47119459]
[1737673059597,0.01338038,103920.0,103910.0,0.39348954]
[1737673070583,0.00029883,103920.0,103910.0,0.39348954]
[1737673070883,0.01338038,103920.0,103910.0,0.39348954]
[1737673072778,0.00029883,103920.0,103910.0,0.49083683]
[1737673072975,0.00029883,103920.0,103910.0,0.49287054]
[1737673073199,0.00029883,103920.0,103910.0,0.59021783]
[1737673074163,0.03638038,103920.0,103910.0,0.39552325]
[1737673074486,0.12974937,103920.0,103910.0,0.39552325]
[1737673074823,0.02307925,103920.0,103910.0,0.34762325]
[1737673077395,0.0131608,103920.0,103910.0,0.34762325]
[1737673082837,0.0361608,103920.0,103910.0,0.34762325]
[1737673083250,0.0361608,103920.0,103910.0,0.44012958]
[1737673084092,7.925e-05,103920.0,103910.0,0.48862958]
[1737673084494,0.0131608,103920.0,103910.0,0.48862958]
[1737673084906,7.925e-05,103920.0,103910.0,0.48862958]
[1737673092334,0.0131608,103920.0,103910.0,0.48862958]
[1737673093464,0.0361608,103920.0,103910.0,0.39612325]
[1737673095274,7.925e-05,103920.0,103910.0,0.49347054]
[1737673099079,7.925e-05,103920.0,103910.0,0.39612325]
[1737673099284,0.0131608,103920.0,103910.0,0.39612325]
[1737673099670,0.0131608,103920.0,103910.0,0.29988625]
[1737673099847,7.925e-05,103920.0,103910.0,0.25138625]
[1737673100043,0.09308327,103920.0,103910.0,0.16948625]
[1737673100317,0.40556158,103920.0,103910.0,0.01948625]
[1737673100605,0.40556158,103920.0,103910.0,0.01738938]
[1737673101222,0.40556158,103920.0,103910.0,0.00838938]
[1737673101772,0.40556158,103920.0,103910.0,0.00738938]
[1737673103763,0.35666158,103920.0,103910.0,0.00738938]
[1737673103953,0.28665756,103920.0,103910.0,0.00738938]
[1737673104157,0.35666158,103920.0,103910.0,0.00738938]
[1737673104384,0.28665756,103920.0,103910.0,0.00438938]
[1737673104989,0.35766158,103920.0,103910.0,0.00438938]
[1737673105240,0.36666158,103920.0,103910.0,0.00538938]
[1737673105441,0.29565756,103920.0,103910.0,0.00538938]
[1737673105653,0.36566158,103920.0,103910.0,0.00538938]
[1737673105967,0.36966158,103920.0,103910.0,0.00538938]
[1737673106932,0.29965756,103920.0,103910.0,0.00538938]
[1737673107219,0.36966158,103920.0,103910.0,0.00538938]
[1737673107685,0.29965756,103920.0,103910.0,0.00538938]
[1737673108397,0.38842058,103920.0,103910.0,0.00538938]
[1737673110261,0.39695371,103920.0,103910.0,0.00538938]
[1737673118071,0.44695371,103920.0,103910.0,0.00538938]
[1737673118308,0.53695773,103920.0,103910.0,0.00538938]
[1737673118507,0.48695773,103920.0,103910.0,0.00538938]
[1737673118827,0.41695371,103920.0,103910.0,0.0054377]
[1737673119304,0.48695773,103920.0,103910.0,0.0054377]
[1737673119732,0.41695371,103920.0,103910.0,0.0054377]
[1737673125394,0.48695773,103920.0,103910.0,0.0054377]
[1737673126177,0.41695371,103920.0,103910.0,0.0054377]
[1737673127269,0.48695773,103920.0,103910.0,0.0054377]
[1737673129136,0.48195773,103920.0,103910.0,0.0054377]
[1737673130582,0.41195371,103920.0,103910.0,0.0054377]
[1737673132715,0.48195773,103920.0,103910.0,0.0054377]
[1737673132921,0.41195371,103920.0,103910.0,0.0838377]
[1737673133125,0.28511144,103920.0,103910.0,0.0838377]
[1737673133274,0.40541429,103920.0,103910.0,0.11200147]
[1737673133479,0.42841429,103920.0,103910.0,0.11200147]
[1737673133685,0.37841429,103920.0,103910.0,0.11200147]
[1737673134064,0.37841429,103920.0,103910.0,0.12538935]
[1737673134759,0.44841831,103920.0,103910.0,0.01882558]
[1737673135502,0.44841831,103920.0,103910.0,0.0054377]
[1737673135702,0.37841429,103920.0,103910.0,0.0054377]
[1737673135883,0.36941429,103920.0,103910.0,0.0857377]
[1737673136113,0.29941027,103920.0,103910.0,0.23609245]
[1737673136320,0.28541027,103920.0,103910.0,0.2941849]
[1737673136531,0.28541027,103920.0,103910.0,0.2931849]
[1737673136965,0.29041027,103920.0,103910.0,0.2941849]
[1737673137174,0.29541027,103920.0,103910.0,0.2931849]
[1737673137395,0.17506298,103920.0,103910.0,0.3894219]
[1737673137614,0.18806298,103920.0,103910.0,0.3904219]
[1737673138018,0.21106298,103920.0,103910.0,0.2941849]
[1737673138215,0.20606298,103920.0,103910.0,0.2941849]
[1737673138452,0.21006298,103920.0,103910.0,0.2941849]
[1737673138676,0.37741429,103920.0,103910.0,0.23709245]
[1737673141032,0.37741429,103920.0,103910.0,0.00579245]
[1737673144339,0.30741027,103920.0,103910.0,0.08139245]
[1737673144737,0.09083598,103920.0,103910.0,0.08139245]
[1737673145142,0.21006298,103920.0,103910.0,0.08139245]
[1737673145376,0.21006298,103920.0,103910.0,0.1572633]
[1737673145579,0.11383598,103920.0,103910.0,0.1572633]
[1737673145785,0.2467608,103920.0,103910.0,0.1572633]
[1737673145986,0.2467608,103920.0,103910.0,0.08139245]
[1737673146332,0.04383196,103920.0,103910.0,0.08139245]
[1737673146611,0.1505338,103920.0,103910.0,0.08139245]
[1737673146784,0.2467608,103920.0,103910.0,0.08139245]
[1737673147544,0.04383196,103920.0,103910.0,0.17762945]
[1737673148969,0.04383196,103920.0,103910.0,0.25349965]
[1737673149367,0.04838038,103920.0,103910.0,0.45299965]
[1737673149568,0.01229883,103920.0,103910.0,0.55034694]
[1737673150118,0.01308155,103950.0,103940.0,0.141902]
[1737673150555,0.09955039,103960.0,103940.0,0.39256769]
[1737673150754,0.08646884,103960.0,103950.0,0.3231]
[1737673150960,0.08646884,103960.0,103950.0,0.3684]
[1737673152756,0.08646884,103960.0,103950.0,0.46574729]
[1737673153268,0.08746884,103960.0,103950.0,0.47974729]
[1737673153773,0.00936884,103960.0,103950.0,0.47974729]
[1737673153978,0.001494,103960.0,103950.0,0.57709458]
[1737673154210,0.001494,103960.0,103950.0,0.57748396]
[1737673154952,0.00029946,103970.0,103960.0,0.37239]
[1737673155123,0.00034884,103970.0,103960.0,0.46973729]
[1737673155260,0.00034884,103970.0,103960.0,0.47006381]
[1737673155463,0.00034884,103970.0,103960.0,0.53873706]
[1737673156309,0.00034884,103970.0,103960.0,0.54773706]
[1737673156517,0.00034884,103970.0,103960.0,0.55813706]
[1737673156722,0.00034884,103970.0,103960.0,0.56313706]
[1737673156977,0.00034884,103970.0,103960.0,0.55413706]
[1737673157182,0.00034884,103970.0,103960.0,0.54913706]
[1737673157382,0.00034884,103970.0,103960.0,0.55813706]
[1737673157623,0.00034884,103970.0,103960.0,0.56513706]
[1737673158891,0.00034884,103970.0,103960.0,0.57205551]
[1737673160039,0.00034884,103970.0,103960.0,0.62205551]
[1737673160239,0.00034884,103970.0,103960.0,0.62807544]
[1737673160830,0.01321896,104000.0,103960.0,0.53188544]
[1737673161193,0.01326832,104000.0,103990.0,0.096163]
[1737673161425,0.01326832,104000.0,103990.0,0.3220332]
[1737673161765,0.01326832,104000.0,103990.0,0.40395972]
[1737673161966,0.00018677,104000.0,103990.0,0.40395972]
[1737673162652,0.00018677,104000.0,103990.0,0.40595972]
[1737673163937,0.00018677,104000.0,103990.0,0.50330701]
[1737673166226,0.00018677,104000.0,103990.0,0.55200701]
[1737673169642,0.00018677,104000.0,103990.0,0.55168049]
[1737673171043,0.00018677,104000.0,103990.0,0.54968049]
[1737673171487,0.00018677,104000.0,103990.0,0.55868049]
[1737673171905,0.00018677,104000.0,103990.0,0.56268049]
[1737673172117,0.0133808,104020.0,104010.0,0.372444]
[1737673172118,0.00029925,104020.0,104010.0,0.372444]
[1737673172319,0.00029925,104020.0,104010.0,0.50904806]
[1737673173527,0.00029925,104020.0,104010.0,0.51404806]
[1737673174419,0.00029925,104020.0,104010.0,0.52304806]
[1737673176377,0.00029925,104020.0,104010.0,0.53211806]
[1737673184437,0.00029925,104020.0,104010.0,0.56169021]
[1737673185271,0.00029925,104020.0,104010.0,0.61169021]
[1737673185651,0.00029925,104020.0,104010.0,0.62205021]
[1737673186805,0.00029925,104020.0,104010.0,0.57205021]
[1737673187010,0.00029925,104020.0,104010.0,0.105144]
[1737673187209,0.00029925,104020.0,103990.0,0.5874504]
[1737673187210,0.01308155,104010.0,103990.0,0.5874504]
[1737673187530,0.096153,104000.0,103990.0,0.0001422]
[1737673187730,0.32320213,104000.0,103990.0,0.0001422]
[1737673187993,0.39070213,104000.0,103990.0,0.0001422]
[1737673188946,0.39070213,104000.0,103990.0,0.0091422]
[1737673190088,0.55280397,104000.0,103990.0,0.0091422]
[1737673190301,0.096181,103970.0,103960.0,0.0001423]
[1737673190530,0.32323013,103970.0,103960.0,0.00019166]
[1737673190738,0.32323013,103970.0,103960.0,0.00628768]
[1737673190982,0.32323013,103970.0,103960.0,0.00415556]
[1737673191412,0.34323013,103970.0,103960.0,0.00415556]
[1737673191789,0.34323013,103970.0,103960.0,0.01315556]
[1737673191994,0.41863013,103970.0,103960.0,0.01315556]
[1737673192418,0.41863013,103970.0,103960.0,0.01530692]
[1737673192842,0.41863013,103970.0,103960.0,0.01715556]
[1737673193180,0.41863013,103970.0,103960.0,0.00415556]
[1737673193580,0.41863013,103970.0,103960.0,0.00715556]
[1737673194195,0.60203197,103970.0,103960.0,0.00715556]
[1737673194407,0.09622,103930.0,103910.0,0.2888353]
[1737673194626,0.09622,103930.0,103910.0,0.2893293]
[1737673195731,0.01308155,103920.0,103910.0,0.4393363]
[1737673195889,0.288632,103940.0,103920.0,0.246227]
[1737673196085,0.404814,103950.0,103920.0,0.52659216]
[1737673196288,0.01308155,103940.0,103930.0,0.096218]
[1737673196696,0.01308155,103940.0,103930.0,0.295818]
[1737673196900,0.01308155,103950.0,103940.0,0.15]
[1737673197099,0.01308155,103950.0,103940.0,0.438614]
[1737673197319,0.096186,103970.0,103960.0,0.15]
[1737673197584,0.49140784,103980.0,103960.0,0.15]
[1737673197707,0.57823229,103980.0,103960.0,0.15]
[1737673198139,0.096181,103970.0,103960.0,0.15]
[1737673198564,0.01308155,103970.0,103960.0,0.24619]
[1737673198796,0.192358,104000.0,103970.0,0.096174]
[1737673199018,0.29771545,104000.0,103980.0,0.246169]
[1737673199251,0.29771545,104000.0,103980.0,0.438508]
[1737673199458,0.00924645,104000.0,103990.0,0.246163]
[1737673200430,4e-05,104000.0,103990.0,0.15]
[1737673200640,4e-05,104000.0,103990.0,0.2996303]
[1737673201254,0.096193,104000.0,103990.0,0.15]
[1737673201447,0.20289484,104000.0,103990.0,0.15]
[1737673201772,0.20289484,104000.0,103990.0,0.003]
[1737673202315,0.34324213,104000.0,103990.0,0.0031424]
[1737673202958,0.39324213,104000.0,103990.0,0.0031424]
[1737673203170,0.39424213,104000.0,103990.0,0.0001424]
[1737673203795,0.39324213,104000.0,103990.0,0.0001424]
[1737673204007,0.45724213,104000.0,103990.0,0.0001424]
[1737673204244,0.41624213,104000.0,103990.0,0.0011424]
[1737673205911,0.46624213,104000.0,103990.0,0.0011424]
[1737673206367,0.43624213,104000.0,103990.0,0.0011424]
[1737673206874,0.33124213,104000.0,103990.0,0.0011424]
[1737673208878,0.35424213,104000.0,103990.0,0.0011424]
[1737673209071,0.40424213,104000.0,103990.0,0.0011424]
[1737673209322,0.38424213,104000.0,103990.0,0.0011424]
[1737673211775,0.33424213,104000.0,103990.0,0.0011424]
[1737673213285,0.41024213,104000.0,103990.0,0.0011424]
[1737673213495,0.1192,103950.0,103940.0,0.05855613]
[1737673213695,0.096218,103930.0,103920.0,0.0491]
[1737673213897,0.39650113,103930.0,103910.0,0.0501423]
[1737673214138,0.01308155,103920.0,103910.0,0.3926153]
[1737673214349,0.01308155,103940.0,103920.0,0.192444]
[1737673214503,0.01308155,103950.0,103930.0,0.370118]
[1737673214704,0.01308155,103950.0,103940.0,0.246209]
[1737673215263,0.288578,103960.0,103940.0,0.438627]
[1737673215473,0.38592529,103960.0,103940.0,0.438627]
[1737673215641,0.49262713,103960.0,103940.0,0.438627]
[1737673215851,0.003,103950.0,103940.0,0.5333645]
[1737673216246,0.49262713,103960.0,103940.0,0.5333645]
[1737673216445,0.19454229,103960.0,103940.0,0.7257825]
[1737673216654,0.19454229,103960.0,103940.0,0.7277825]
[1737673217017,0.01408155,103950.0,103940.0,0.5353645]
[1737673217216,0.01408155,103950.0,103940.0,0.63271179]
[1737673217217,0.001,103950.0,103940.0,0.63271179]
[1737673217906,0.001,103950.0,103940.0,0.48271179]
[1737673218113,0.01408155,103950.0,103940.0,0.48271179]
[1737673218246,0.01408155,103950.0,103940.0,0.63271179]
[1737673218599,0.001,103950.0,103940.0,0.63071179]
[1737673218740,0.01308155,103960.0,103950.0,0.15]
[1737673218946,0.01308155,103960.0,103950.0,0.31515028]
[1737673219918,0.01308155,103960.0,103950.0,0.31619966]
[1737673220282,0.01408155,103960.0,103950.0,0.31619966]
[1737673220484,0.20389184,103960.0,103950.0,0.00104938]
[1737673220892,0.09719,103960.0,103950.0,0.15104938]
[1737673222323,0.001,103960.0,103950.0,0.24724938]
[1737673223723,0.30123913,103960.0,103950.0,0.00104938]
[1737673224184,0.32423913,103960.0,103950.0,0.00104938]
[1737673225310,0.32423913,103960.0,103950.0,4.938e-05]
[1737673225506,0.32323913,103960.0,103950.0,4.938e-05]
[1737673225934,0.33123913,103960.0,103950.0,4.938e-05]
[1737673226140,0.32323913,103960.0,103950.0,4.938e-05]
[1737673226347,0.09919,103960.0,103950.0,4.938e-05]
[1737673226955,0.10719,103960.0,103950.0,4.938e-05]
[1737673227639,0.10419,103960.0,103950.0,4.938e-05]
[1737673227984,0.10419,103960.0,103950.0,0.00104938]
[1737673228204,0.09619,103960.0,103950.0,0.00104938]
[1737673228437,0.001,103960.0,103950.0,0.09724738]
[1737673228862,0.001,103960.0,103950.0,0.14262532]
[1737673229484,0.001,103960.0,103950.0,0.09724738]
[1737673236400,0.001,103960.0,103950.0,0.42559467]
[1737673238322,0.001,103960.0,103950.0,0.48583632]
[1737673238783,0.02240303,103980.0,103970.0,0.096181]
[1737673239390,0.01308155,103980.0,103970.0,0.096181]
[1737673239746,0.01308155,103980.0,103970.0,0.3285104]
[1737673240513,0.01608155,103980.0,103970.0,0.3285104]
[1737673240719,0.01608155,103980.0,103970.0,0.4039104]
[1737673241108,0.02508155,103980.0,103970.0,0.4049104]
[1737673241535,0.012,103980.0,103970.0,0.55065769]
[1737673242003,0.012,103980.0,103970.0,0.58035816]
[1737673242624,0.012,103980.0,103970.0,0.58727661]
[1737673242823,0.012,103980.0,103970.0,0.63727661]
[1737673243295,0.009,103980.0,103970.0,0.63727661]
[1737673243680,0.009,103980.0,103970.0,0.66527661]
[1737673243885,0.009,103980.0,103970.0,0.66379661]
[1737673244091,0.009,103980.0,103970.0,0.65879661]
[1737673244510,0.00029904,103990.0,103980.0,0.37689045]
[1737673244712,0.00029904,103990.0,103980.0,0.6012855]
[1737673245469,0.00029904,103990.0,103980.0,0.57158503]
[1737673245697,0.00129904,103990.0,103980.0,0.57558503]
[1737673246402,0.00129904,103990.0,103980.0,0.6552572]
[1737673247898,0.00129904,103990.0,103980.0,0.6612572]
[1737673248649,0.00129904,103990.0,103980.0,0.63158503]
[1737673250259,0.01438059,103990.0,103980.0,0.32731929]
[1737673250476,0.01438059,103990.0,103980.0,0.01]
[1737673250675,0.01438059,103990.0,103980.0,0.11948097]
[1737673250809,0.00129904,103990.0,103980.0,0.11948097]
[1737673251016,0.00129904,103990.0,103980.0,0.26948097]
[1737673251385,0.00129904,103990.0,103980.0,0.21055523]
[1737673251765,0.00129904,103990.0,103980.0,0.26948097]
[1737673251946,0.00129904,103990.0,103980.0,0.256172]
[1737673252149,0.42041117,103990.0,103980.0,0.01]
[1737673252356,0.42041117,103990.0,103980.0,0.0101424]
[1737673252976,0.44006604,103990.0,103980.0,0.0101424]
[1737673253444,0.17454633,103990.0,103980.0,0.11632864]
[1737673253657,0.00129904,103990.0,103980.0,0.11732864]
[1737673253860,0.00129904,103990.0,103980.0,0.26732864]
[1737673254035,0.01438059,103990.0,103980.0,0.26732864]
[1737673254196,0.01338059,103990.0,103980.0,0.26232864]
[1737673254613,0.01338059,103990.0,103980.0,0.27132864]
[1737673254838,0.01338059,103990.0,103980.0,0.2513144]
[1737673255034,0.01338059,103990.0,103980.0,0.2603144]
[1737673255235,0.01438059,103990.0,103980.0,0.2603144]
[1737673259700,0.00129904,103990.0,103980.0,0.2603144]
[1737673259904,0.00129904,103990.0,103980.0,0.34950557]
[1737673260102,0.01438059,103990.0,103980.0,0.44685286]
[1737673260305,0.00129904,103990.0,103980.0,0.52775286]
[1737673260510,0.00033904,104000.0,103990.0,0.42968145]
[1737673260701,0.00033904,104000.0,103990.0,0.47702874]
[1737673260913,0.00033904,104000.0,103990.0,0.65400749]
[1737673261810,4e-08,104000.0,103990.0,0.65400749]
[1737673262622,0.00100004,104000.0,103990.0,0.66300749]
[1737673262825,4e-08,104000.0,103990.0,0.66300749]
[1737673263577,4e-08,104000.0,103990.0,0.68600749]
[1737673263785,0.00033925,104020.0,104010.0,0.296144]
[1737673263917,0.00048733,104020.0,104010.0,0.47485614]
[1737673264319,0.00048733,104020.0,104010.0,0.42485614]
[1737673264552,0.00048733,104020.0,104010.0,0.47485614]
[1737673265154,0.00048733,104020.0,104010.0,0.48385614]
[1737673266020,0.00048733,104020.0,104010.0,0.48885614]
[1737673266888,0.00027632,104030.0,104020.0,0.15]
[1737673267064,0.00037122,104030.0,104020.0,0.35672649]
[1737673268251,0.00037122,104030.0,104020.0,0.41472649]
[1737673269368,0.00037122,104030.0,104020.0,0.105135]
[1737673269369,0.10707306,104030.0,104020.0,0.105135]
[1737673269576,0.10707306,104030.0,104020.0,0.009]
[1737673269818,0.20319906,104030.0,104020.0,0.009]
[1737673270257,0.20319906,104030.0,104020.0,0.013]
[1737673270627,0.20319906,104030.0,104020.0,0.163]
[1737673270827,0.10707306,104030.0,104020.0,0.3042778]
[1737673271658,0.01345277,104030.0,104020.0,0.3042778]
[1737673271864,0.01345277,104030.0,104020.0,0.40162509]
[1737673271865,0.00037122,104030.0,104020.0,0.40162509]
[1737673272272,0.00037122,104030.0,104020.0,0.44992509]
[1737673273117,0.00037122,104030.0,104020.0,0.61277275]
[1737673273290,0.00037122,104030.0,104020.0,0.6472484]
[1737673273527,0.00037122,104030.0,104020.0,0.6432484]
[1737673273739,0.00037122,104030.0,104020.0,0.6482484]
[1737673274144,0.00037122,104030.0,104020.0,0.6432484]
[1737673274354,0.00037122,104030.0,104020.0,0.65228623]
[1737673274584,0.00037122,104030.0,104020.0,0.61128623]
[1737673275030,0.00037122,104030.0,104020.0,0.60228623]
[1737673275209,0.00037122,104030.0,104020.0,0.61128623]
[1737673275556,0.00037122,104030.0,104020.0,0.63107024]
[1737673275804,0.00037122,104030.0,104020.0,0.59007024]
[1737673276213,0.00037122,104030.0,104020.0,0.64007024]
[1737673276426,0.00037122,104030.0,104020.0,0.59007024]
[1737673276630,0.00037122,104030.0,104020.0,0.64007024]
[1737673276799,2.2e-07,104030.0,104020.0,0.64007024]
[1737673277149,0.01338123,104050.0,104020.0,0.64007024]
[1737673277150,0.00029968,104050.0,104030.0,0.18011845]
[1737673277282,0.00029968,104050.0,104040.0,0.34346329]
[1737673277496,0.00029968,104050.0,104040.0,0.39346329]
[1737673277744,0.00029968,104050.0,104040.0,0.34346329]
[1737673278286,0.00029968,104050.0,104040.0,0.35246329]
[1737673279548,0.00029968,104050.0,104040.0,0.35846329]
[1737673279769,0.00029968,104050.0,104040.0,0.43439453]
[1737673281073,0.01338123,104050.0,104040.0,0.43439453]
[1737673281241,0.01338123,104050.0,104040.0,0.261116]
[1737673282037,0.01338123,104050.0,104040.0,0.35846329]
[1737673283828,0.01338123,104050.0,104040.0,0.261116]
[1737673284566,0.01338123,104050.0,104040.0,0.27024506]
[1737673286622,0.00029968,104050.0,104040.0,0.27024506]
[1737673286825,0.00029968,104050.0,104040.0,0.015]
[1737673287031,0.39634631,104050.0,104040.0,0.015]
[1737673287238,0.57474631,104050.0,104040.0,0.015]
[1737673287482,0.55474631,104050.0,104040.0,0.015]
[1737673287681,0.55474631,104050.0,104040.0,0.009]
[1737673287887,0.266216,104040.0,104030.0,0.01325316]
[1737673288092,0.52315563,104040.0,104030.0,0.01325316]
[1737673288511,0.68274797,104040.0,104030.0,0.01325316]
[1737673288716,0.220326,104030.0,104020.0,0.0001423]
[1737673288917,0.47726563,104030.0,104020.0,0.0001423]
[1737673289386,0.50416563,104030.0,104020.0,0.0001423]
[1737673289876,0.096153,104000.0,103990.0,0.0001424]
[1737673290147,0.45129263,104000.0,103990.0,0.0002373]
[1737673290357,0.70778497,104000.0,103990.0,0.0002373]
[1737673290572,0.65778497,104000.0,103990.0,0.0002373]
[1737673291357,0.65778497,104000.0,103990.0,0.0072373]
[1737673291560,0.65878497,104000.0,103990.0,0.0072373]
[1737673291919,0.49919263,104000.0,103990.0,0.0002373]
[1737673292212,0.49919263,104000.0,103990.0,0.0042373]
[1737673292539,0.65878497,104000.0,103990.0,0.0042373]
[1737673292752,0.49919263,104000.0,103990.0,0.0042373]
[1737673293398,0.65878497,104000.0,103990.0,0.0042373]
[1737673293811,0.49819263,104000.0,103990.0,0.0002373]
[1737673294006,0.49819263,104000.0,103990.0,0.0012373]
[1737673294283,0.66678497,104000.0,103990.0,0.0012373]
[1737673294460,0.50719263,104000.0,103990.0,0.0012373]
[1737673294830,0.52719263,104000.0,103990.0,0.0012373]
[1737673295202,0.68678497,104000.0,103990.0,0.0012373]
[1737673295417,0.57719263,104000.0,103990.0,0.0012373]
[1737673295619,0.74601068,104000.0,103990.0,0.0012373]
[1737673295853,0.60612549,104000.0,103990.0,0.0012373]
[1737673296026,0.76571783,104000.0,103990.0,0.0012373]
[1737673296223,0.60612549,104000.0,103990.0,0.0012373]
[1737673296654,0.76571783,104000.0,103990.0,0.0012373]
[1737673297102,0.60612549,104000.0,103990.0,0.0012373]
[1737673297347,0.76571783,104000.0,103990.0,0.0012373]
[1737673297525,0.71571783,104000.0,103990.0,0.0012373]
[1737673297685,0.60612549,104000.0,103990.0,0.0012373]
[1737673297894,0.76571783,104000.0,103990.0,0.0012373]
[1737673298311,0.69571783,104000.0,103990.0,0.0012373]
[1737673299366,0.69271783,104000.0,103990.0,0.0012373]
[1737673299592,0.72271783,104000.0,103990.0,0.0012373]
[1737673299824,0.58612549,104000.0,103990.0,0.0012373]
[1737673300076,0.69571783,104000.0,103990.0,0.0012373]
[1737673304339,0.53612549,104000.0,103990.0,0.0012373]
[1737673305161,0.69571783,104000.0,103990.0,0.0012373]
[1737673306981,0.15959234,103980.0,103970.0,0.0915607]
[1737673307226,0.54546163,103980.0,103960.0,0.096187]
[1737673307449,0.54546163,103980.0,103960.0,0.29417663]
[1737673307663,0.54546163,103980.0,103960.0,0.48655563]
[1737673307942,0.10659423,103970.0,103960.0,0.48655563]
[1737673308143,0.58864352,103980.0,103960.0,0.15]
[1737673308373,0.331525,103980.0,103970.0,0.004]
[1737673308583,0.023,103970.0,103960.0,0.24619]
[1737673308820,0.22577523,103970.0,103960.0,0.157]
[1737673309494,0.22577523,103970.0,103960.0,0.158]
[1737673309841,0.22577523,103970.0,103960.0,0.157]
[1737673310041,0.32312252,103970.0,103960.0,0.157]
[1737673310247,0.32312252,103970.0,103960.0,0.15]
[1737673310452,0.32312252,103970.0,103950.0,0.5311124]
[1737673310453,0.13919,103960.0,103950.0,0.0001424]
[1737673310653,0.55962575,103960.0,103950.0,0.0001424]
[1737673311251,0.50962575,103960.0,103950.0,0.0001424]
[1737673311681,0.50962575,103960.0,103950.0,0.00129048]
[1737673311915,0.50962575,103960.0,103950.0,0.00029048]
[1737673312116,0.55962575,103960.0,103950.0,0.00029048]
[1737673312322,0.51862575,103960.0,103950.0,0.00129048]
[1737673312864,0.53787767,103960.0,103950.0,0.00129048]
[1737673314452,0.54737668,103960.0,103950.0,0.00129048]
[1737673316869,0.073,103950.0,103940.0,0.0001424]
[1737673317085,0.073,103950.0,103940.0,0.0006364]
[1737673317086,0.42973575,103950.0,103940.0,0.0006364]
[1737673317260,0.55263575,103950.0,103940.0,0.0006364]
[1737673317647,0.58358509,103950.0,103940.0,0.0006364]
[1737673318279,0.55263575,103950.0,103940.0,0.0006364]
[1737673318481,0.56063575,103950.0,103940.0,0.00100001]
[1737673318655,0.55263575,103950.0,103940.0,1e-08]
[1737673318837,0.58358509,103950.0,103940.0,1e-08]
[1737673319035,0.59258509,103950.0,103940.0,0.00100001]
[1737673319241,0.59258509,103950.0,103940.0,0.00096001]
[1737673320132,0.40241546,103920.0,103910.0,0.0001423]
[1737673320365,0.49976275,103920.0,103910.0,0.0001423]
[1737673320572,0.42976275,103920.0,103910.0,0.0001423]
[1737673320772,0.46159402,103920.0,103910.0,0.0001423]
[1737673321609,0.47079342,103920.0,103910.0,0.0001423]
[1737673321810,0.47779342,103920.0,103910.0,0.0061423]
[1737673322227,0.47779342,103920.0,103910.0,0.0011423]
[1737673322573,0.48079342,103920.0,103910.0,0.0011423]
[1737673323152,0.44896215,103920.0,103910.0,0.0011423]
[1737673323343,0.407984,103900.0,103880.0,0.0964042]
[1737673323553,0.32319652,103890.0,103880.0,0.0964042]
[1737673324423,0.32319652,103890.0,103880.0,0.1034062]
[1737673324635,0.46162202,103890.0,103880.0,0.00719158]
[1737673324835,0.48162202,103890.0,103880.0,0.00719158]
[1737673325041,0.53162202,103890.0,103880.0,0.00019158]
[1737673325222,0.53262202,103890.0,103880.0,0.00719158]
[1737673325713,0.59312202,103890.0,103880.0,0.00719158]
[1737673325920,0.2346895,103880.0,103870.0,0.0001424]
[1737673326126,0.2346895,103880.0,103870.0,0.00029069]
[1737673326127,0.33203679,103880.0,103870.0,0.00029069]
[1737673326329,0.35503679,103880.0,103870.0,0.00029069]
[1737673326715,0.29586823,103870.0,103860.0,0.0001424]
[1737673326839,0.48164102,103870.0,103860.0,0.0001424]
[1737673327057,0.37504679,103870.0,103860.0,0.0001424]
[1737673327295,0.42504679,103870.0,103860.0,0.0001424]
[1737673327713,0.53164102,103870.0,103860.0,0.0001424]
[1737673327917,0.42504679,103870.0,103860.0,0.0001424]
[1737673328320,0.37504679,103870.0,103860.0,0.0001424]
[1737673328515,0.38004679,103870.0,103860.0,0.0001424]
[1737673329184,0.54244102,103870.0,103860.0,0.0001424]
[1737673329388,0.55144102,103870.0,103860.0,0.0001424]
[1737673330450,0.4429552,103870.0,103860.0,0.0001424]
[1737673330671,0.4929552,103870.0,103860.0,0.0001424]
[1737673330881,0.4629552,103870.0,103860.0,0.0001424]
[1737673331087,0.40721552,103870.0,103860.0,0.0001424]
[1737673331489,0.36421552,103870.0,103860.0,0.0001424]
[1737673331722,0.32349393,103870.0,103860.0,0.0001424]
[1737673332145,0.34649393,103870.0,103860.0,0.0001424]
[1737673333942,0.84649393,103870.0,103860.0,0.0001424]
[1737673335854,0.52708155,103870.0,103860.0,0.0964254]